bitfinex-derivatives/quotes_ETHF0:USTF0_20260316
["timestamp","ask_amount","ask_price","bid_price","bid_amount"]
[1773664457514,12.27519557,2294.4,2293.6,0.21796]
[1773664459310,12.27519557,2294.4,2293.6,0.60106781]
[1773664460004,12.27519557,2294.4,2293.6,0.21796]
[1773664461808,12.27519557,2294.4,2293.3,3.55477612]
[1773664462012,12.27519557,2294.4,2293.4,3.77275612]
[1773664462219,12.27519557,2294.4,2293.4,0.21798]
[1773664462513,12.27519557,2294.4,2293.4,3.77275612]
[1773664463315,12.27519557,2294.4,2293.6,0.21796]
[1773664463518,12.27519557,2294.4,2293.7,3.55477612]
[1773664463922,12.27519557,2294.4,2293.5,3.55477612]
[1773664464112,12.27519557,2294.4,2293.4,3.55477612]
[1773664464611,12.27519557,2294.4,2293.3,3.55477612]
[1773664465325,12.27519557,2294.4,2293.2,5.34829634]
[1773664465326,12.27519557,2294.4,2293.4,3.55477612]
[1773664465509,12.97178412,2294.3,2293.5,3.55477612]
[1773664465715,12.97178412,2294.3,2293.4,3.55477612]
[1773664466321,12.97178412,2294.3,2293.5,3.77274612]
[1773664466521,12.97178412,2294.3,2293.7,3.55477612]
[1773664467715,12.97178412,2294.3,2293.6,3.55477612]
[1773664468221,12.97178412,2294.3,2293.7,3.55477612]
[1773664468812,12.97178412,2294.3,2293.5,0.21797]
[1773664468813,12.97178412,2294.3,2293.6,3.55477612]
[1773664469121,12.97178412,2294.3,2293.7,0.21795]
[1773664469421,12.97178412,2294.3,2293.7,3.77272612]
[1773664470818,12.97178412,2294.3,2293.4,3.89696902]
[1773664471019,11.83559248,2294.1,2292.6,3.0011859]
[1773664471219,11.83559248,2294.1,2293.1,12.22317693]
[1773664471519,11.83559248,2294.1,2293.3,12.22317693]
[1773664471726,11.83559248,2294.1,2293.0,12.22317693]
[1773664472224,11.83559248,2294.1,2293.2,12.22317693]
[1773664472425,11.83559248,2294.3,2293.4,12.22317693]
[1773664472624,11.83559248,2295.1,2294.2,12.22317693]
[1773664472924,11.83559248,2295.1,2293.6,12.22317693]
[1773664473124,11.22379,2295.4,2293.6,12.22317693]
[1773664473125,11.83559248,2294.9,2293.6,12.22317693]
[1773664473323,11.83559248,2294.9,2293.7,12.22317693]
[1773664473519,11.83559248,2294.9,2293.7,22.40117693]
[1773664473714,11.8394358,2294.9,2293.7,22.40469089]
[1773664474324,11.8394358,2294.9,2293.7,12.22669089]
[1773664475125,11.83559248,2294.8,2293.7,12.22669089]
[1773664476128,11.83559248,2294.6,2293.7,12.22669089]
[1773664477826,0.00384332,2294.9,2293.9,12.22317693]
[1773664478130,0.00384332,2294.9,2294.1,12.22317693]
[1773664478131,11.83559248,2294.8,2294.1,12.22317693]
[1773664480230,11.83559248,2294.8,2294.0,10.179]
[1773664480725,11.83559248,2294.8,2293.9,12.22317693]
[1773664480931,11.83559248,2294.8,2294.0,10.182]
[1773664481132,11.83559248,2294.8,2293.9,12.22317693]
[1773664481331,11.83559248,2294.8,2294.0,10.182]
[1773664482133,11.83559248,2294.8,2294.0,10.184]
[1773664484435,11.83559248,2294.8,2293.8,10.189]
[1773664484930,11.83559248,2294.8,2293.8,22.41217693]
[1773664485440,11.83559248,2295.3,2294.5,12.22317693]
[1773664485732,11.83559248,2295.3,2294.6,10.192]
[1773664486439,11.84062536,2295.3,2294.6,10.192]
[1773664486832,11.84062536,2295.3,2294.6,10.194]
[1773664487037,11.84062536,2295.3,2294.6,10.195]
[1773664487448,12.05842536,2295.3,2293.8,12.22317693]
[1773664487740,11.83559248,2295.1,2293.8,12.22317693]
[1773664487943,11.83559248,2295.1,2293.7,0.00351396]
[1773664487944,12.05343248,2294.9,2293.7,0.00351396]
[1773664488139,11.83559248,2294.7,2293.7,0.00351396]
[1773664488337,11.83559248,2294.5,2293.4,10.197]
[1773664488547,11.83559248,2294.5,2293.4,10.198]
[1773664488948,11.83559248,2294.5,2293.5,12.22317693]
[1773664489349,11.83559248,2294.5,2293.5,0.00330485]
[1773664490240,22.85059248,2294.5,2293.5,0.00330485]
[1773664490441,11.83559248,2294.4,2293.5,0.00330485]
[1773664491242,11.83559248,2294.4,2293.5,12.22648178]
[1773664492742,11.83559248,2294.4,2293.6,12.18060172]
[1773664493351,12.82153708,2294.8,2293.6,12.18060172]
[1773664493852,12.82153708,2294.8,2293.7,10.207]
[1773664494251,11.77427733,2294.6,2293.7,10.207]
[1773664495845,11.77427733,2294.6,2293.6,12.18060172]
[1773664496050,11.77427733,2294.6,2293.6,0.21796]
[1773664497253,11.77427733,2294.6,2293.5,0.00330485]
[1773664498045,11.77427733,2294.6,2293.6,12.02359223]
[1773664498248,11.77427733,2294.6,2293.5,0.22126485]
[1773664499353,11.77427733,2294.6,2293.5,12.24485708]
[1773664502152,11.77427733,2294.6,2293.6,10.217]
[1773664502549,11.77427733,2294.6,2293.6,22.24059223]
[1773664502749,11.77427733,2294.9,2293.9,12.02359223]
[1773664502949,11.77427733,2294.9,2293.8,12.02359223]
[1773664503359,11.77427733,2294.9,2293.9,10.218]
[1773664503860,11.77427733,2294.9,2293.9,22.24159223]
[1773664504161,11.77427733,2294.9,2294.0,12.02359223]
[1773664507463,11.77427733,2294.9,2293.9,10.219]
[1773664507464,11.77427733,2294.9,2294.2,12.02359223]
[1773664507663,11.77427733,2295.2,2294.2,12.02359223]
[1773664508568,0.00503288,2295.3,2294.2,12.02359223]
[1773664508868,0.00503288,2295.3,2294.4,12.02359223]
[1773664509460,0.00503288,2295.3,2294.6,12.02359223]
[1773664509658,11.77931021,2295.3,2294.4,10.225]
[1773664509864,11.77931021,2295.3,2294.3,22.24859223]
[1773664511464,11.77931021,2295.3,2293.9,0.21793]
[1773664511664,11.77931021,2295.3,2294.1,12.02359223]
[1773664512864,11.77931021,2295.3,2294.2,22.25359223]
[1773664513264,11.77931021,2295.3,2294.3,22.25459223]
[1773664513670,11.77931021,2295.3,2294.4,12.02359223]
[1773664514767,11.77931021,2295.3,2294.4,12.24147223]
[1773664514966,11.77931021,2295.3,2294.5,10.234]
[1773664515171,11.77931021,2295.3,2294.4,10.234]
[1773664515368,11.77931021,2295.3,2293.3,8.93446762]
[1773664515369,11.77427733,2294.7,2292.6,12.02359223]
[1773664515563,11.77427733,2294.7,2291.8,12.02359223]
[1773664515564,11.77427733,2293.7,2291.8,12.02359223]
[1773664515762,11.77427733,2293.5,2291.9,12.02359223]
[1773664515967,11.77427733,2293.3,2291.9,12.02359223]
[1773664516172,11.77427733,2293.3,2292.0,10.23930485]
[1773664516467,11.77770564,2293.3,2292.0,22.25959223]
[1773664516873,11.77770564,2293.3,2292.1,12.02689708]
[1773664517074,11.77770564,2293.3,2292.2,10.237]
[1773664517272,11.77770564,2293.3,2292.1,12.02359223]
[1773664517470,11.77770564,2293.3,2292.1,22.26159223]
[1773664517670,11.77770564,2293.3,2292.2,0.00330485]
[1773664517875,11.77427733,2291.6,2289.4,12.02359223]
[1773664518174,11.77427733,2291.5,2289.9,12.02359223]
[1773664518569,12.45648598,2291.4,2290.0,12.02689708]
[1773664518768,0.68220865,2291.3,2290.2,12.02359223]
[1773664519076,11.77427733,2291.4,2290.2,12.02359223]
[1773664519277,11.77427733,2291.4,2290.4,12.02359223]
[1773664519669,11.77427733,2291.4,2290.6,12.02359223]
[1773664519977,11.77427733,2291.4,2290.7,10.253]
[1773664520172,11.77427733,2291.4,2290.7,10.25630485]
[1773664520771,11.77427733,2291.4,2290.8,10.259]
[1773664521276,0.00217374,2291.6,2291.0,12.02359223]
[1773664521577,11.77427733,2291.5,2289.2,0.21837]
[1773664521771,11.77427733,2290.8,2288.9,12.02359223]
[1773664521971,11.77427733,2290.6,2289.1,12.02359223]
[1773664522172,11.77427733,2290.4,2289.1,12.02359223]
[1773664522367,11.77427733,2290.4,2289.1,12.02743555]
[1773664522368,11.59851973,2290.3,2289.1,12.02743555]
[1773664523270,11.59851973,2288.5,2286.4,11.54083659]
[1773664523472,8.73531,2289.3,2285.8,8.74822]
[1773664523473,11.59851973,2288.3,2286.9,12.14723988]
[1773664523675,11.59851973,2288.2,2286.9,12.14723988]
[1773664523973,11.59851973,2288.2,2287.0,11.54083659]
[1773664524173,11.60391299,2288.2,2287.1,21.83883659]
[1773664526370,11.60391299,2288.2,2287.1,11.54083659]
[1773664527767,0.0018793,2288.2,2287.1,11.54083659]
[1773664528170,0.0018793,2288.2,2287.3,11.54083659]
[1773664529075,11.60039903,2288.2,2287.3,11.54083659]
[1773664529667,11.60039903,2288.2,2287.0,11.54564533]
[1773664529867,0.0018793,2288.2,2287.0,11.54564533]
[1773664530674,0.0018793,2288.2,2287.0,20.28925533]
[1773664530873,0.0018793,2288.2,2287.2,11.54083659]
[1773664531479,0.0018793,2288.2,2287.0,0.22339874]
[1773664531480,0.0018793,2288.2,2287.4,11.54083659]
[1773664532877,11.60039903,2288.2,2287.4,11.54083659]
[1773664533772,11.59851973,2288.9,2287.4,11.54083659]
[1773664533970,11.59851973,2288.9,2287.6,11.54083659]
[1773664534777,11.60405066,2288.9,2287.6,11.54083659]
[1773664536077,11.60405066,2288.9,2287.1,21.96683659]
[1773664536277,11.60405066,2288.9,2287.2,11.54083659]
[1773664536479,11.59851973,2288.7,2287.0,0.00480874]
[1773664536776,11.59851973,2288.5,2287.0,0.00480874]
[1773664536977,11.59851973,2288.3,2287.0,0.00480874]
[1773664537482,11.59851973,2288.1,2287.0,0.00480874]
[1773664537884,11.59851973,2287.9,2287.0,0.00480874]
[1773664538084,11.59851973,2288.2,2287.0,11.54564533]
[1773664538584,11.59851973,2288.2,2287.2,11.54083659]
[1773664539980,11.59851973,2288.2,2287.0,11.54564533]
[1773664540183,11.177,2288.1,2287.0,11.54564533]
[1773664540385,11.59851973,2288.0,2287.0,11.54564533]
[1773664541779,11.59851973,2288.0,2287.0,0.00480874]
[1773664542386,11.59851973,2287.8,2287.0,0.00480874]
[1773664543385,22.78151973,2287.8,2287.0,0.00480874]
[1773664543585,11.59851973,2287.7,2287.0,0.00480874]
[1773664545788,11.59851973,2287.7,2286.2,10.67366]
[1773664545984,12.50020689,2287.6,2286.3,11.54083659]
[1773664546185,12.28167689,2287.5,2286.3,11.54083659]
[1773664546379,11.59851973,2287.3,2286.3,11.54083659]
[1773664546592,22.78451973,2287.3,2286.3,11.54083659]
[1773664546785,11.59851973,2287.2,2286.4,11.54083659]
[1773664546987,11.60367717,2287.2,2286.4,11.54083659]
[1773664547298,11.81711973,2287.0,2285.3,11.54083659]
[1773664547491,11.59851973,2286.8,2285.5,11.54083659]
[1773664547988,11.59851973,2286.7,2285.5,11.54083659]
[1773664548184,11.59851973,2286.7,2285.7,11.54083659]
[1773664550088,11.192,2287.1,2285.7,11.54083659]
[1773664550387,0.68338723,2287.0,2285.9,11.54083659]
[1773664550588,0.00515744,2287.2,2286.1,11.54083659]
[1773664550991,11.59851973,2287.9,2286.3,11.54083659]
[1773664551187,11.59851973,2287.9,2286.0,10.46]
[1773664551188,11.81703973,2287.7,2286.1,11.54083659]
[1773664551495,11.59851973,2287.5,2286.1,11.54083659]
[1773664551693,11.59851973,2287.3,2286.1,11.54083659]
[1773664551993,11.59851973,2287.1,2286.1,0.00515744]
[1773664552190,11.91051166,2287.0,2286.1,11.01388679]
[1773664552392,0.68320795,2286.9,2286.1,11.01388679]
[1773664552886,11.22730371,2287.0,2286.1,11.01388679]
[1773664553094,11.91065807,2286.9,2286.1,0.00515744]
[1773664553282,11.22730371,2286.7,2286.1,0.00515744]
[1773664553686,10.92492145,2286.5,2286.1,0.00515744]
[1773664553887,10.92492145,2286.5,2285.8,11.00872935]
[1773664554290,10.92492145,2286.5,2285.8,10.50872935]
[1773664554590,10.92492145,2286.9,2285.8,10.50872935]
[1773664554785,11.60836996,2286.8,2285.8,10.50872935]
[1773664554993,10.92492145,2286.6,2285.8,10.50872935]
[1773664555495,10.92492145,2286.6,2284.7,9.63432323]
[1773664555496,10.92492145,2286.6,2285.2,10.68641697]
[1773664555695,10.92492145,2286.4,2285.4,10.68641697]
[1773664557296,10.92492145,2286.4,2285.1,10.68641697]
[1773664557489,10.92492145,2286.2,2285.1,10.68641697]
[1773664557797,10.92492145,2286.1,2285.1,10.68641697]
[1773664557996,10.92492145,2286.1,2284.5,0.21882]
[1773664557997,10.92492145,2285.9,2284.5,10.68641697]
[1773664558190,10.92492145,2285.9,2283.4,22.76876]
[1773664558191,10.92492145,2285.2,2283.7,10.68641697]
[1773664558391,0.00355348,2285.2,2284.1,10.68641697]
[1773664558996,0.00355348,2285.2,2284.2,10.68641697]
[1773664559201,10.92847493,2285.2,2284.2,10.68641697]
[1773664559605,0.00355348,2285.2,2284.2,10.68641697]
[1773664560307,0.00355348,2285.2,2284.3,10.68641697]
[1773664560700,10.92492145,2285.6,2284.3,10.68997045]
[1773664560904,3.53584924,2286.5,2284.3,10.68997045]
[1773664560905,10.92492145,2286.2,2284.3,10.68997045]
[1773664561407,10.92492145,2286.2,2284.8,10.68641697]
[1773664561605,10.92492145,2286.2,2285.0,10.68641697]
[1773664561803,10.92492145,2286.2,2285.2,10.68641697]
[1773664561804,0.00413862,2286.2,2285.2,10.68641697]
[1773664561998,0.00237551,2286.2,2285.2,10.68641697]
[1773664562204,10.92492145,2286.6,2285.2,10.68641697]
[1773664562611,10.92492145,2287.1,2285.2,10.68641697]
[1773664563106,10.92492145,2287.1,2285.1,0.21877]
[1773664563107,10.92492145,2287.1,2285.4,10.68641697]
[1773664563307,10.93050565,2287.1,2285.4,10.68641697]
[1773664563708,10.93050565,2287.1,2285.6,10.68641697]
[1773664563900,10.93050565,2287.1,2285.8,10.68641697]
[1773664564207,10.93050565,2287.1,2285.5,10.68641697]
[1773664564907,10.93050565,2287.1,2285.7,10.68641697]
[1773664565105,10.93050565,2287.1,2285.9,10.68641697]
[1773664565106,0.0055842,2287.1,2285.9,10.68641697]
[1773664565302,10.93050565,2287.1,2286.1,10.68641697]
[1773664565500,10.93050565,2287.1,2286.2,0.21867]
[1773664565501,0.0055842,2287.1,2286.2,0.21867]
[1773664565700,0.0055842,2287.1,2286.3,10.68641697]
[1773664566411,10.92492145,2287.0,2286.1,0.00443174]
[1773664567010,10.92492145,2287.0,2286.1,10.69084871]
[1773664568909,10.92492145,2287.0,2286.1,0.00443174]
[1773664569911,10.92492145,2287.0,2285.5,10.68641697]
[1773664570112,10.92492145,2286.8,2285.6,10.68641697]
[1773664570811,10.92492145,2286.8,2285.6,10.68967733]
[1773664571912,10.92492145,2286.6,2285.6,0.00326036]
[1773664572613,11.54334356,2286.5,2285.6,0.00326036]
[1773664572812,10.92492145,2286.5,2285.6,0.00326036]
[1773664573507,10.92492145,2286.3,2285.6,0.00326036]
[1773664574414,11.187,2286.7,2285.6,0.00326036]
[1773664574415,10.92492145,2286.7,2285.6,10.68967733]
[1773664574617,10.92492145,2286.5,2285.6,10.68967733]
[1773664575311,10.92492145,2287.0,2285.7,0.21871]
[1773664575513,10.92492145,2286.8,2285.8,10.68641697]
[1773664575714,10.92492145,2287.0,2285.8,10.68641697]
[1773664576520,10.92492145,2287.0,2285.9,10.90510697]
[1773664577414,10.92492145,2287.0,2285.9,10.68641697]
[1773664577814,10.92492145,2287.7,2286.7,10.68641697]
[1773664578017,10.92492145,2287.5,2286.3,10.68641697]
[1773664578714,5.39192221,2287.4,2286.3,10.68641697]
[1773664578918,10.92492145,2287.3,2285.9,10.68641697]
[1773664579817,10.92492145,2287.1,2285.9,10.68641697]
[1773664580018,10.92492145,2287.3,2286.3,10.68641697]
[1773664580411,0.00355095,2287.4,2286.5,10.68641697]
[1773664580817,10.9284724,2287.4,2286.5,10.68641697]
[1773664581319,10.9284724,2287.4,2285.9,10.68641697]
[1773664581814,10.9284724,2287.4,2286.1,10.68641697]
[1773664582221,10.9284724,2287.4,2286.3,10.78345066]
[1773664582525,10.9284724,2287.4,2286.5,10.78345066]
[1773664583021,0.00355095,2287.4,2286.5,10.78345066]
[1773664583422,11.05075926,2287.4,2286.5,10.78345066]
[1773664584420,11.05075926,2287.4,2286.0,10.78345066]
[1773664584815,11.204,2287.3,2286.2,10.78345066]
[1773664585017,11.04720831,2287.3,2286.2,10.78345066]
[1773664585415,11.04720831,2287.3,2286.3,0.21866]
[1773664585614,11.04720831,2287.3,2286.4,10.78345066]
[1773664586027,0.00355095,2287.4,2286.4,10.78345066]
[1773664586418,0.00355095,2287.4,2286.6,10.78345066]
[1773664586621,0.00355095,2287.4,2286.8,10.78345066]
[1773664586821,11.04720831,2287.8,2286.8,10.78345066]
[1773664587829,22.26035892,2287.8,2286.8,10.78345066]
[1773664588224,11.04720831,2287.7,2286.8,10.78345066]
[1773664592034,11.04720831,2287.7,2286.7,0.21862]
[1773664592224,11.04720831,2287.7,2286.7,11.00207066]
[1773664592424,22.25420831,2287.7,2286.7,11.00207066]
[1773664592627,22.25320831,2287.7,2286.7,11.00207066]
[1773664593133,11.04720831,2287.7,2286.7,11.00207066]
[1773664593331,22.25320831,2287.7,2286.7,11.00207066]
[1773664593727,0.00415061,2287.8,2287.2,10.78345066]
[1773664594430,11.05135892,2287.8,2286.7,10.78345066]
[1773664595433,11.04720831,2287.6,2286.7,10.78345066]
[1773664595629,11.05135892,2287.8,2287.0,11.00204066]
[1773664595832,0.00415061,2287.8,2287.0,11.00204066]
[1773664596533,11.05135892,2287.8,2287.0,11.00204066]
[1773664600335,11.05135892,2287.8,2286.5,0.21863]
[1773664600536,11.05135892,2287.8,2286.6,10.78345066]
[1773664602433,11.26987892,2287.8,2286.0,10.78345066]
[1773664602636,11.04720831,2287.6,2286.0,10.78345066]
[1773664602829,11.04720831,2287.4,2286.0,10.78345066]
[1773664603434,11.04720831,2287.4,2286.2,10.78345066]
[1773664603932,11.04720831,2287.4,2285.6,0.00326036]
[1773664603933,22.26420831,2287.4,2286.4,10.78345066]
[1773664604226,11.04720831,2287.3,2286.4,10.78345066]
[1773664604834,11.04720831,2287.3,2286.3,0.21866]
[1773664605633,11.04720831,2287.3,2286.3,11.00211066]
[1773664606637,11.04720831,2287.1,2286.3,11.00211066]
[1773664606833,3.6423602,2287.6,2286.3,11.00211066]
[1773664606834,11.04720831,2287.5,2286.3,11.00211066]
[1773664607034,11.04720831,2287.3,2285.9,10.78345066]
[1773664607443,11.04720831,2287.1,2285.9,10.78345066]
[1773664607737,11.04720831,2287.1,2286.1,10.78345066]
[1773664608134,11.04720831,2286.9,2286.1,10.78345066]
[1773664608534,11.04720831,2286.9,2286.2,11.00212066]
[1773664609236,22.25820831,2286.9,2286.2,11.00212066]
[1773664610141,11.04720831,2287.5,2286.2,11.00212066]
[1773664610332,11.04720831,2287.3,2286.2,11.00212066]
[1773664611935,11.205,2287.2,2286.2,11.00212066]
[1773664612441,21.68047782,2287.2,2286.2,11.00212066]
[1773664613342,10.47547782,2287.2,2286.2,11.00212066]
[1773664613543,21.67647782,2287.2,2286.2,11.00212066]
[1773664613743,10.47547782,2287.2,2286.2,11.00212066]
[1773664613943,21.67447782,2287.2,2286.2,11.00212066]
[1773664614341,10.47547782,2287.2,2286.6,10.38926259]
[1773664614542,21.67247782,2287.2,2286.6,10.38926259]
[1773664615547,21.66847782,2287.2,2286.6,10.38926259]
[1773664616442,10.37970191,2287.1,2286.6,10.38926259]
[1773664616742,10.37970191,2287.1,2285.8,8.74822]
[1773664616743,10.37970191,2286.9,2285.7,10.17064259]
[1773664616944,10.37970191,2286.7,2285.7,10.17064259]
[1773664617143,10.37970191,2286.5,2285.7,10.17064259]
[1773664617344,10.37970191,2286.3,2285.7,10.17064259]
[1773664619244,21.56270191,2286.5,2285.7,10.17064259]
[1773664619445,10.37970191,2286.4,2285.7,10.17064259]
[1773664620242,11.181,2286.4,2285.7,10.17064259]
[1773664620748,10.37970191,2286.6,2285.7,10.17064259]
[1773664620944,10.37970191,2286.6,2285.9,10.17064259]
[1773664621240,3.64651081,2287.8,2286.5,10.17064259]
[1773664621440,3.64651081,2287.8,2286.8,10.17064259]
[1773664621441,21.56185252,2287.8,2286.8,10.17064259]
[1773664621646,21.56185252,2287.8,2287.2,0.21856]
[1773664622043,10.37970191,2287.7,2286.8,10.17064259]
[1773664622342,10.37970191,2287.5,2286.8,10.17064259]
[1773664624944,10.37970191,2287.7,2286.8,10.17064259]
[1773664625651,10.38385252,2287.8,2287.0,10.17064259]
[1773664625942,10.37970191,2287.7,2287.0,10.17064259]
[1773664636459,21.56770191,2287.7,2287.0,10.17064259]
[1773664637058,10.37970191,2287.6,2287.0,10.17064259]
[1773664637859,10.37970191,2287.6,2286.9,0.2186]
[1773664638264,10.37970191,2287.6,2286.8,10.17064259]
[1773664638862,21.57570191,2287.5,2286.8,10.17064259]
[1773664639064,10.37970191,2287.5,2286.8,10.17064259]
[1773664639270,10.38385252,2287.8,2286.8,10.38924259]
[1773664639465,10.37970191,2287.7,2286.8,10.38924259]
[1773664639770,0.00415061,2287.8,2287.3,10.17064259]
[1773664639959,0.00415061,2287.8,2287.3,10.17623323]
[1773664640162,10.38385252,2287.8,2287.3,10.17623323]
[1773664642569,10.38385252,2287.8,2287.3,0.00559064]
[1773664643162,10.38385252,2287.8,2287.3,9.6368434]
[1773664644568,10.38385252,2287.8,2287.3,0.00559064]
[1773664644963,10.38385252,2287.8,2287.3,9.6368434]
[1773664645165,10.38385252,2287.8,2287.3,0.00559064]
[1773664645363,10.38385252,2287.8,2286.4,9.63125276]
[1773664645568,10.38385252,2287.8,2285.7,8.74869]
[1773664645569,10.19491572,2287.4,2285.7,9.63125276]
[1773664645769,10.19491572,2287.2,2286.1,9.63125276]
[1773664646367,10.19491572,2287.2,2286.3,9.63125276]
[1773664646568,10.19491572,2287.2,2286.5,9.63125276]
[1773664647962,10.19491572,2287.2,2286.6,0.21863]
[1773664648261,10.19491572,2287.2,2286.7,9.63125276]
[1773664649270,11.234,2287.4,2286.7,9.63125276]
[1773664649472,10.19491572,2287.4,2286.7,9.63125276]
[1773664649974,11.236,2287.5,2286.7,9.63125276]
[1773664650174,21.43091572,2287.5,2286.7,9.63125276]
[1773664650372,10.19491572,2287.5,2286.7,9.63125276]
[1773664651169,10.19491572,2287.7,2286.9,9.63125276]
[1773664651375,10.19491572,2287.7,2287.1,9.63125276]
[1773664651669,0.00415061,2287.8,2287.1,9.63125276]
[1773664651670,10.19906633,2287.8,2287.1,9.63125276]
[1773664652277,10.19906633,2287.8,2286.8,9.63125276]
[1773664652479,10.19491572,2287.6,2286.8,9.63125276]
[1773664652979,10.19491572,2287.5,2286.8,9.63125276]
[1773664653876,10.19491572,2287.5,2287.0,9.63125276]
[1773664654077,21.44391572,2287.7,2287.0,9.63125276]
[1773664654477,10.19491572,2287.7,2287.0,9.63125276]
[1773664655977,10.19491572,2287.5,2286.5,9.84989276]
[1773664656972,0.00415061,2287.8,2286.5,9.84989276]
[1773664656973,10.19491572,2287.7,2286.5,9.84989276]
[1773664658278,21.45791572,2287.7,2286.5,9.84989276]
[1773664658477,10.19491572,2287.6,2286.5,9.84989276]
[1773664660387,10.19491572,2287.6,2286.5,9.63125276]
[1773664660579,10.19491572,2287.2,2286.1,9.63645762]
[1773664660984,10.19491572,2287.0,2286.1,9.63645762]
[1773664667888,10.19491572,2286.9,2286.1,9.63645762]
[1773664674692,9.39182384,2287.4,2286.3,9.57506715]
[1773664674891,9.39182384,2287.4,2286.5,9.57506715]
[1773664677692,9.39597445,2287.8,2287.1,9.57506715]
[1773664680197,9.39597445,2287.8,2286.9,19.97806715]
[1773664681293,9.39597445,2287.8,2286.6,9.57506715]
[1773664681492,9.39597445,2287.8,2286.5,10.62463]
[1773664681697,9.39182384,2287.6,2286.2,9.57506715]
[1773664681997,9.39182384,2287.4,2286.1,0.00520486]
[1773664683099,9.39182384,2287.2,2285.8,9.57506715]
[1773664683499,9.39182384,2287.0,2285.6,9.57506715]
[1773664683702,9.39182384,2286.8,2285.6,9.57506715]
[1773664683900,9.39182384,2286.8,2285.3,9.57506715]
[1773664684099,9.39182384,2286.8,2285.3,9.57666716]
[1773664684698,9.39182384,2286.8,2285.3,9.79540716]
[1773664687302,9.39182384,2286.8,2285.8,9.57506715]
[1773664687602,9.39182384,2286.8,2285.9,9.57506715]
[1773664689297,9.39182384,2286.8,2286.0,0.21868]
[1773664689503,9.39182384,2286.8,2286.1,9.57506715]
[1773664690704,9.39182384,2286.8,2286.0,9.79374715]
[1773664691203,9.39182384,2286.8,2286.0,9.57506715]
[1773664691406,9.39182384,2286.8,2285.8,19.99006715]
[1773664692104,9.39182384,2286.8,2285.9,9.57506715]
[1773664693708,9.39182384,2286.6,2286.0,9.57506715]
[1773664694206,9.39182384,2286.6,2285.9,0.21869]
[1773664695701,9.39182384,2286.6,2285.8,9.57506715]
[1773664695906,9.39182384,2286.6,2285.5,9.57506715]
[1773664698411,9.39182384,2286.6,2285.7,9.57506715]
[1773664699002,9.39182384,2286.6,2285.6,9.79378715]
[1773664699207,9.39182384,2286.6,2285.4,10.427]
[1773664699208,9.39182384,2286.6,2285.5,9.79379715]
[1773664702006,9.39182384,2286.4,2285.3,9.57666716]
[1773664702512,9.39182384,2286.4,2285.7,8.93971725]
[1773664703513,9.39182384,2286.4,2285.6,0.21872]
[1773664704014,9.39182384,2286.4,2285.6,9.15843725]
[1773664705913,9.39182384,2286.4,2285.6,8.93971725]
[1773664706517,9.39182384,2286.4,2285.3,0.00160001]
[1773664706816,9.39182384,2286.4,2285.4,8.93971725]
[1773664707217,9.39182384,2286.4,2285.6,8.93971725]
[1773664710819,9.39182384,2286.4,2285.5,0.21873]
[1773664711020,9.39182384,2286.4,2285.4,8.93971725]
[1773664711219,9.39182384,2286.4,2285.3,8.94131726]
[1773664712021,9.39182384,2286.4,2285.3,0.00160001]
[1773664712319,9.23018609,2286.2,2285.3,0.00160001]
[1773664712914,9.23018609,2286.2,2285.3,8.94131726]
[1773664717421,9.23018609,2286.2,2285.3,0.00160001]
[1773664717622,9.23018609,2286.2,2285.0,9.15848725]
[1773664719028,9.23018609,2286.2,2285.0,8.93971725]
[1773664719327,9.23018609,2286.0,2285.0,8.93971725]
[1773664719526,9.23431749,2286.0,2285.0,8.93971725]
[1773664724124,0.0041314,2286.0,2285.2,8.93971725]
[1773664724325,9.23431749,2286.0,2285.2,8.93971725]
[1773664726228,9.23431749,2286.0,2284.6,10.64881]
[1773664726229,9.23431749,2286.0,2284.7,8.93971725]
[1773664729123,9.23431749,2286.0,2285.1,8.93971725]
[1773664731336,9.23018609,2286.4,2285.5,8.93971725]
[1773664731633,9.23018609,2286.8,2285.7,8.93971725]
[1773664731934,9.23018609,2286.8,2285.9,8.93971725]
[1773664732329,9.23374938,2286.8,2285.9,8.94384865]
[1773664734033,9.23374938,2286.8,2285.9,8.38622453]
[1773664734937,9.23374938,2286.8,2285.9,0.0041314]
[1773664735132,9.23374938,2286.8,2285.9,8.38622453]
[1773664737232,9.23374938,2286.8,2285.9,0.0041314]
[1773664738239,8.31279326,2286.7,2285.9,0.0041314]
[1773664739439,8.31279326,2286.6,2285.9,0.0041314]
[1773664740939,8.31279326,2286.6,2285.9,8.38622453]
[1773664742743,8.31279326,2286.6,2285.9,0.0041314]
[1773664743039,8.31279326,2286.6,2285.9,8.38622453]
[1773664750742,8.31635655,2286.8,2286.1,8.38209313]
[1773664752141,8.31279326,2287.5,2286.3,8.38209313]
[1773664752339,8.31279326,2288.2,2286.9,8.38209313]
[1773664752534,8.31279326,2288.2,2287.1,8.38209313]
[1773664753143,8.31629824,2288.2,2287.3,8.38209313]
[1773664753839,8.31629824,2288.2,2286.9,8.38209313]
[1773664755648,8.31629824,2288.2,2286.8,8.38209313]
[1773664755949,8.31629824,2288.2,2286.3,0.21646371]
[1773664755950,8.31279326,2288.0,2286.4,8.38209313]
[1773664756246,8.31279326,2287.9,2286.4,8.38209313]
[1773664756943,8.31279326,2287.9,2286.6,8.38209313]
[1773664758346,8.31279326,2287.7,2286.4,8.38209313]
[1773664759950,5.41152379,2287.6,2286.4,8.38209313]
[1773664760149,8.31279326,2287.5,2286.4,8.38209313]
[1773664760350,8.31279326,2287.5,2286.2,8.38209313]
[1773664760947,8.31279326,2287.4,2286.2,8.38209313]
[1773664762059,0.21391145,2287.7,2286.4,8.38209313]
[1773664762060,8.52670471,2287.7,2286.4,8.38209313]
[1773664762555,8.52670471,2287.7,2286.6,8.13112866]
[1773664763462,8.31279326,2287.7,2286.8,8.13112866]
[1773664764757,8.19038845,2288.1,2287.0,8.13112866]
[1773664765156,8.19038845,2288.1,2287.2,8.13112866]
[1773664767154,8.19038845,2288.1,2287.4,8.13112866]
[1773664767359,8.19038845,2288.1,2287.3,8.34968866]
[1773664767560,8.19038845,2288.1,2287.0,8.13112866]
[1773664769763,5.41063242,2288.0,2286.6,8.13112866]
[1773664770062,8.19038845,2287.9,2286.6,8.13112866]
[1773664772161,8.19038845,2287.9,2286.7,8.13112866]
[1773664774359,8.19038845,2287.9,2286.7,8.34974866]
[1773664775266,8.19038845,2287.9,2286.9,8.13112866]
[1773664775465,8.19038845,2287.9,2287.1,8.13112866]
[1773664776466,8.19038845,2287.9,2286.8,8.13112866]
[1773664781471,8.19038845,2287.7,2286.5,8.34976866]
[1773664785775,8.19038845,2287.7,2287.0,8.13112866]
[1773664786074,8.19038845,2288.1,2287.2,8.13112866]
[1773664786677,0.00350498,2288.2,2287.4,8.13112866]
[1773664786968,8.19038845,2288.6,2287.6,8.13112866]
[1773664787175,8.19038845,2288.6,2287.8,8.13112866]
[1773664787372,8.19038845,2288.6,2287.9,8.13112866]
[1773664787975,8.19521466,2288.6,2287.9,8.1345793]
[1773664788572,11.215,2289.3,2288.1,8.13112866]
[1773664788573,8.19038845,2289.0,2288.1,8.13112866]